Cogmind - Beta 13 @@@ ROGUE MODE // 2024.05.15 @ 01:04:18 Player: mrwizrd Result: Destroyed by Y-45 Defender with Heavy Assault Rifle Performance ------------- Evolutions (1) 500 Regions Visited (3) 600 Robots Destroyed (8) 40 Value Destroyed (256) 256 Prototype IDs (1) 20 Alien Tech Used (0) 0 Bonus (0) 0 TOTAL SCORE: 1416 Bonus ------- None Cogmind --------- Core Integrity 0/400 Matter 35/300 Energy 280/280 System Corruption 0% Temperature Cool (9) Movement Core (150) Ox2 Location -9/Storage Parts ------- > --- POWER (1) -------- Cooled Ion Engine > --- PROPULSION (2) --- (None) > --- UTILITY (4) ------ (None) > --- WEAPON (2) ------- (None) > --- INVENTORY (5) ---- Cooled Ion Engine Hardened Light Armor Plating Hardened Light Armor Plating Hardened Light Armor Plating EM Pulse Gun Peak State ------------ > --- POWER ------------ Cooled Ion Engine > --- PROPULSION ------- Aluminum Leg Aluminum Leg > --- UTILITY ---------- Small Storage Unit Hardened Light Armor Plating > --- WEAPON ----------- Mini Grenade Launcher Mini Grenade Launcher > --- INVENTORY -------- Cooled Ion Engine Cooled Ion Engine Cooled Ion Engine Hardened Light Armor Plating Hardened Light Armor Plating Hardened Light Armor Plating EM Pulse Gun Medium Laser [Rating: 13] Favorites ----------- Power Cooled Ion Engine Engine Cooled Ion Engine Propulsion Aluminum Leg Leg Aluminum Leg Utility Small Storage Unit Storage Small Storage Unit Protection Hardened Light Armor Plating Weapon Mini Grenade Launcher Energy Gun EM Pulse Gun Launcher Mini Grenade Launcher Build | -11 -10 -9 -9 ------- Run | Yrd Mat Mat Sto Slots Evolved 2 | . . 2 . Power . | . . . . Propulsion . | . . . . Utility 2 | . . 2 . Weapon . | . . . . Parts Attached 15 | 9 4 . 2 Power 5 | 3 1 . 1 Engine 5 | 3 1 . 1 Core . | . . . . Reactor . | . . . . Propulsion 2 | 2 . . . Treads . | . . . . Leg 2 | 2 . . . Wheel . | . . . . Hover . | . . . . Flight . | . . . . Utility 2 | 1 1 . . Device . | . . . . Storage 1 | 1 . . . Processor . | . . . . Hackware . | . . . . Protection 1 | . 1 . . Artifact . | . . . . Weapon 6 | 3 2 . 1 Energy Gun 4 | 3 . . 1 Energy Cannon . | . . . . Ballistic Gun . | . . . . Ballistic Cannon . | . . . . Launcher 2 | . 2 . . Special Weapon . | . . . . Impact Weapon . | . . . . Slashing Weapon . | . . . . Piercing Weapon . | . . . . Special Melee Weapon . | . . . . Unidentified Prototypes 1 | . 1 . . Parts Lost 7 | . . . 7 Power 1 | . . . 1 Propulsion 2 | . . . 2 Utility 2 | . . . 2 Weapon 2 | . . . 2 Highest Loss Streak 4 | . . . 4 To Critical Strikes . | . . . . Average Slot Usage (%) 76 | . 99 77 49 Engine 11 | . 14 11 7 Leg 20 | . 28 22 10 Storage 11 | . 14 11 10 Protection 10 | . 13 11 7 Energy Gun 1 | . 4 . . Launcher 19 | . 23 22 13 Naked Turns . | . . . . Heaviest Build 21 | 14 21 20 20 Greatest Support 20 | 20 20 20 20 Greatest Overweight (x) 6 | 4 1 . 6 Average Overweight (x) . | 1 . . . Largest Inventory Capacity 8 | 8 8 8 8 Average Capacity 7 | 7 8 8 7 Most Carried 8 | 3 8 8 8 Average Carried 6 | 2 7 7 7 Final Capacity 8 | 8 8 8 5 Final Carried 8 | 2 8 8 5 Class Distribution -------------------- 100% | Mutant Dominant Class ---------------- Mutant | -10/Materials Mutant | -9/Materials Mutant | -9/Storage Resources | -11 -10 -9 -9 ----------- Run | Yrd Mat Mat Sto Matter Collected 234 | 194 . 40 . Remotely . | . . . . Salvage Created 204 | . 104 53 47 Parts 15 | . 8 2 5 Haulers Intercepted . | . . . . Recyclers Shooed 1 | . 1 . . Parts Field Recycled . | . . . . Retrieved Matter . | . . . . Parts Self-Destructed . | . . . . Prevented . | . . . . Kills | -11 -10 -9 -9 ------- Run | Yrd Mat Mat Sto Combat Hostiles Destroyed 5 | . 2 2 1 AOE 5 | . 2 2 1 Classes Destroyed 5 | . 3 1 1 Recycler 1 | . 1 . . Operator 1 | . . . 1 Watcher 1 | . 1 . . Grunt 3 | . 2 . 1 Sentry 2 | . . 2 . Best Kill Streak 3 | . 3 1 1 Combat Bots Only 2 | . 2 1 1 Max Kills in Single Turn 2 | . 2 1 1 Gunslinging . | . . . . Exploded 2 | . 2 1 1 Melee . | . . . . Uniques/NPCs Destroyed . | . . . . Combat | -11 -10 -9 -9 -------- Run | Yrd Mat Mat Sto Hostile Shots Fired 135 | . 8 11 116 Missed 40 | . 4 4 32 Damage Taken 1299 | . 50 167 1082 Core 402 | . . 41 361 Absorbed by Shields . | . . . . Core Remaining (%) 100 | 100 100 . . Volleys Fired 11 | . 3 5 3 Largest 2 | . 2 2 2 Hottest 60 | . 60 60 60 Shots Fired 21 | . 6 10 5 Gun 1 | . . . 1 Cannon . | . . . . Launcher 20 | . 6 10 4 Special . | . . . . Kinetic . | . . . . Thermal 1 | . . . 1 Explosive 20 | . 6 10 4 Electromagnetic . | . . . . Robot Hit Streak 5 | . 3 4 5 Robot Miss Streak 3 | . . 3 1 Penetration Max . | . . . . Secondary Targets . | . . . . Shots Hit Robots 9 | . 3 5 1 Core Hits 18 | . 8 5 5 Critical Kills . | . . . . Critical Parts Destroyed . | . . . . Critical Strikes . | . . . . Melee Attacks . | . . . . Impact . | . . . . Slashing . | . . . . Piercing . | . . . . Sneak Attacks . | . . . . Combat Hostiles . | . . . . Follow-up Attacks . | . . . . Damage Inflicted 753 | . 336 127 290 Guns . | . . . . Cannons . | . . . . Explosions 742 | . 336 127 279 Melee . | . . . . Ramming 11 | . . . 11 Kinetic . | . . . . Thermal . | . . . . Explosive 742 | . 336 127 279 Electromagnetic . | . . . . Impact . | . . . . Slashing . | . . . . Piercing . | . . . . Highest Corruption . | . . . . Average Corruption . | . . . . Corruption Purged . | . . . . Corruption Blocked . | . . . . Overload Shots . | . . . . Overflow Damage . | . . . . Projectiles . | . . . . Explosions . | . . . . Melee . | . . . . Knockbacks 1 | . . . 1 Impact 1 | . . . 1 Kinetic . | . . . . Secondary . | . . . . Self-Inflicted Damage 72 | . . 71 1 Shots 4 | . . 4 . Rammed 5 | . . . 5 Targets Rammed 6 | . . . 6 Kicked 1 | . . . 1 Crushed . | . . . . Highest Temperature 36 | . 33 36 30 Average Temperature 16 | . 15 18 13 Received Heat Transfer 579 | . 27 57 495 Siege Activations . | . . . . Robots Corrupted . | . . . . Combat Hostiles . | . . . . Parts Fried . | . . . . Impact Corruptions . | . . . . Robots Melted . | . . . . Combat Hostiles . | . . . . Parts Melted . | . . . . Heat Transferred . | . . . . Parts Sabotaged . | . . . . Parts Stolen . | . . . . Parts Stripped . | . . . . Power Chain Reactions . | . . . . Alert | -11 -10 -9 -9 ------- Run | Yrd Mat Mat Sto Peak Influence 169 | . 81 169 88 Initial 24 | . . 24 7 Average 38 | . 23 73 54 Maximum Alert Level . | . . . . Low Security (%) 100 | 100 100 100 100 Level 1 . | . . . . Level 2 . | . . . . Level 3 . | . . . . Level 4 . | . . . . Level 5 . | . . . . High Security . | . . . . Max Security . | . . . . Squads Dispatched 5 | . 1 . 4 Investigation 1 | . . . 1 Extermination . | . . . . Reinforcement 2 | . 1 . 1 Assault . | . . . . Garrison 2 | . . . 2 Intercept . | . . . . Searches Triggered . | . . . . Construction Impeded 1 | . . . 1 Haulers Reinforced . | . . . . Active Scanning Responses . | . . . . Cargo Convoy Interrupts . | . . . . Stealth | -11 -10 -9 -9 --------- Run | Yrd Mat Mat Sto Distress Signals . | . . . . Communications Jammed . | . . . . Distress Signals . | . . . . Times Spotted 25 | . 6 4 15 Peak Tracking Total 13 | . 2 2 13 Tactical Retreats . | . . . . Traps | -11 -10 -9 -9 ------- Run | Yrd Mat Mat Sto Traps Triggered 1 | . . . 1 Indirectly . | . . . . Trap Hack Attempts . | . . . . Triggered . | . . . . Disarmed . | . . . . Reprogrammed . | . . . . Reused . | . . . . Traps Extracted . | . . . . Installed . | . . . . Triggered . | . . . . Machines | -11 -10 -9 -9 ---------- Run | Yrd Mat Mat Sto Machines Disabled . | . . . . Max in Single Turn . | . . . . Machines Repaired . | . . . . Machines Dismantled . | . . . . Machines Sabotaged . | . . . . Overloaded Fab Kills . | . . . . Hacking | -11 -10 -9 -9 --------- Run | Yrd Mat Mat Sto Machines Accessed 7 | . 4 1 2 Terminals 7 | . 4 1 2 Fabricators . | . . . . Repair Stations . | . . . . Recycling Units . | . . . . Scanalyzers . | . . . . Garrison Access . | . . . . Total Hacks 11 | . 6 2 3 Successful 7 | . 5 1 1 Failed 4 | . 1 1 2 Catastrophic 3 | . 1 . 2 Database Lockouts . | . . . . Manual 6 | . 2 2 2 Terminals 11 | . 6 2 3 Fabricators . | . . . . Repair Stations . | . . . . Recycling Units . | . . . . Scanalyzers . | . . . . Garrison Access . | . . . . Terminal Hacks 7 | . 5 1 1 Open Door 1 | . . . 1 Unreport Threat 2 | . 1 1 . Locate Traps 1 | . 1 . . Recall Investigation 1 | . 1 . . Hauler Manifests 1 | . 1 . . Zone Layout 1 | . 1 . . Fabricator Hacks . | . . . . Repair Station Hacks . | . . . . Recycling Unit Hacks . | . . . . Scanalyzer . | . . . . Garrison Access Hacks . | . . . . Unauthorized Hacks . | . . . . Terminals . | . . . . Fabricators . | . . . . Repair Stations . | . . . . Recycling Units . | . . . . Scanalyzers . | . . . . Garrison Access . | . . . . Data Cores Recovered . | . . . . Used . | . . . . Hacking Detections 2 | . . 1 1 Full Trace Events . | . . . . Feedback Events . | . . . . Feedback Blocked . | . . . . Robot Schematics Acquired . | . . . . Robots Built . | . . . . Authchips . | . . . . Time . | . . . . Total Robot Build Rating . | . . . . Part Schematics Acquired . | . . . . Parts Built . | . . . . Authchips . | . . . . Time . | . . . . Total Part Build Rating . | . . . . Parts Repaired . | . . . . Time . | . . . . Parts Recycled . | . . . . Recycled Matter . | . . . . Retrieved Matter . | . . . . Retrieved Components . | . . . . Parts Scanalyzed . | . . . . Part Schematics Acquired . | . . . . Parts Damaged . | . . . . Bothacking | -11 -10 -9 -9 ------------ Run | Yrd Mat Mat Sto Used RIF Installer . | . . . . Robots Hacked . | . . . . Non-combat . | . . . . Combat . | . . . . Robot Hacks Applied . | . . . . Relay Couplers Released . | . . . . Fabnet Peak Effective % . | . . . . Robots Rewired . | . . . . Allies Hacked . | . . . . Hacks Repelled . | . . . . Allies | -11 -10 -9 -9 -------- Run | Yrd Mat Mat Sto Total Allies . | . . . . Largest Group . | . . . . Highest-Rated Group . | . . . . Highest-Rated Ally . | . . . . Total Orders . | . . . . Ally Attacks . | . . . . Total Damage . | . . . . Kills . | . . . . Allies Corrupted . | . . . . Allies Melted . | . . . . Intel | -11 -10 -9 -9 ------- Run | Yrd Mat Mat Sto Robot Analysis Total . | . . . . Derelict Logs Recovered . | . . . . Drone Launches . | . . . . Drone Recoveries . | . . . . Exploration | -11 -10 -9 -9 ------------- Run | Yrd Mat Mat Sto Turns Passed 775 | 122 276 135 242 Spaces Moved 533 | 63 209 99 162 Core 95 | 23 . . 72 Treads . | . . . . Legs 438 | 40 209 99 90 Wheels . | . . . . Hover . | . . . . Flight . | . . . . Fastest Speed 50 | 50 120 120 50 Average Speed 130 | 170 120 120 133 Slowest Speed 350 | 250 190 120 350 Overloaded Moves . | . . . . Propulsion Burnouts . | . . . . Robots Hopped . | . . . . Cave-ins Triggered . | . . . . Exploration Rate (%) 22 | 6 40 12 31 Regions Visited 3 Branch Regions 1 Pre-discovered Areas . | . . . . Known Exits Taken . | . . . . Unknown Exits Taken 3 | 1 1 1 . Scrap Searched . | . . . . Spaces Dug . | . . . . Terrain Destroyed 158 | . 37 82 39 Melee . | . . . . Projectile . | . . . . AOE 158 | . 37 82 39 Terrain Rammed . | . . . . Walls Destroyed . | . . . . Machines Disabled . | . . . . Actions | -11 -10 -9 -9 --------- Run | Yrd Mat Mat Sto Total 587 | 73 229 105 180 Wait 7 | . 1 . 6 Move 530 | 62 208 98 162 Hop . | . . . . Pick Up 11 | 2 8 1 . Fast Attach 9 | 5 2 . 2 Attach 3 | 1 2 . . Detach 2 | . 2 . . Swap 3 | 3 . . . Drop 5 | . 3 1 1 Fire 11 | . 3 5 3 Melee . | . . . . Ram 5 | . . . 5 Kick 1 | . . . 1 Crush . | . . . . Escape Stasis . | . . . . Rewire . | . . . . Trap . | . . . . Miscellaneous . | . . . . Route ------- -11/Scrapyard -10/Materials -9/Materials -9/Storage History --------- Turn | Location | Event 22 | -11/Scrapyard | Discovered new exit (range 16) 123 | -11/Scrapyard | Entered Materials 318 | -10/Materials | Build established: Mutant 381 | -10/Materials | Discovered new exit (range 16) 399 | -10/Materials | Entered another Materials area 399 | -9/Materials | Evolved 2 slots: Utility x2 495 | -9/Materials | Discovered new exit (range 5) 534 | -9/Materials | Entered Storage 614 | -9/Storage | Garrison activated, responded to threat 740 | -9/Storage | Lost 4 parts (1p1n1u1w) 744 | -9/Storage | Core integrity fell below 50% 763 | -9/Storage | Core integrity fell below 20% 776 | -9/Storage | Destroyed by Y-45 Defender with Heavy Assault Rifle Last Messages --------------- R-06 Scavenger collects Mni. Grenade Launcher. Cld. Ion Engine destroyed. Slammed into W-16 Scout. Destabilizing: System interference. Mni. Grenade Launcher temporarily disabled. Slammed into W-16 Scout. Hrd. Light Armor Plating destroyed. Mni. Grenade Launcher destroyed. K-01 Serf collects debris. Connecting with Terminal... Critical hit (Burn: +37). Slammed into Y-45 Defender. Sml. Storage Unit destroyed. Acquired Beam Rifle. Acquired Cld. Ion Engine. Beam Rifle destroyed. Connecting with Door Terminal... >>Open(Door) Sealed Heavy Doors opened. Slammed into G-34 Mercenary. Map ----- +----------------------------------------------------+ | | | | | | | | | | | | | | | | | | | | | | | | | ???????????????????????????????????????? | | ???????????????????????????????????????? | | ???????????????????????????????????????? | | ???????????????????????????????????????? | | ???????????????????????????????????????? | | ???????????????????????????????????????? | | ????????##?????????????????????????????? | | ######## #?????????????????????#???????? | | """"" #??????????????###+##T????????? | | """"" #??????????????# ?????????? | | """"" #??????????????# ??????????? | | #??????????????# #???????????? | | #??????????##### #???????????? | | #??????????#= /@g#???????????? | | #??????????###T#Y #???????????? | | #????????????###g ##??????????? | | #/######################gY #??????????? | | * #??????????? | | #??????????? | | ######/################# #??????????? | | ???? ??????????????##;###??????????? | | ?? """ """ ????????????? ???????????? | | ?# """ """ #???????????? ??????????? | | ?# """ """ #???????????? ! ?????????? | | ?# #???????????? ????????? | | ?# = #????????????" """ #???????? | | ?? ?????????????" """ #???????? | | ??? ??????????????" """ #???????? | | ???? "###????????????????##???##???????? | | ????R"?????????????????????????????????? | | ?????"?????????????????????????????????? | | ???????????????????????????????????????? | | ???????????????????????????????????????? | | ???????????????????????????????????????? | | ???????????????????????????????????????? | | ???????????????????????????????????????? | | ???????????????????????????????????????? | | ???????????????????????????????????????? | +----------------------------------------------------+ Best States ------------- Heat Dissipation 28 Energy Generation 14 Energy Capacity 280 Matter Stores 214 Matter Capacity 300 Sight Range 16 Terrain Scan Density 10 Armor Coverage 150 Evasion (%) 55 Item Schematics ----------------- None Robot Schematics ------------------ None Fabricated ------------ Nothing Alien Tech Used ----------------- None Achievements -------------- Oops Shopping List Challenges ------------ None Game ------ Seed FieldQuantumFirepult Manual? 0 Play Time 00:18:46 Cumulative 14.6 hours Start 2024.05.15 @ 00:46:32 End 2024.05.15 @ 01:04:18 Sessions 1 Manual Loads 0 Difficulty Rogue Special Mode None Game No. 16 Rogue 16 Adventurer 0 Explorer 0 Win Type - Total 0 Types 0/0/0/0/0/0/0/0/0 Lore% 10 Gallery% 12 Achievement% 11 Wizard Run 0 Options --------- Layout 0 ASCII 0 Keyboard 1 Movement Arrows Keybinds 0 Fullscreen 2 Font 24/X11 Map View 76x50 Zoom Use 0% Tactical HUD 0 Map Filters NONE Filters NONE Steam 1 RUN: a3f1ead4-dd85-414c-a337-52e4e9120206